[Event "Titled Tuesday Blitz March 07 Early 2023"]
[White "Fier, Alexandr"]
[Black "Sztokbant, Bernardo Vainzoff"]
[WhiteFideId "2107139"]
[BlackFideId "2115956"]
[WhiteElo "2610"]
[BlackElo "2222"]
[Result "1-0"]
[Round "04"]
[TimeControl "180+2"]
[Date "2023.03.07"]
[WhiteClock "0:02:19"]
[BlackClock "0:02:30"]

1. e4 {[%clk 0:03:00]}  c5 {[%clk 0:02:59]} 2. b4 {[%clk 0:02:57]}  cxb4 {[%clk 0:02:59]} 3. a3 {[%clk 0:02:58]}  d5 {[%clk 0:02:59]} 4. exd5 {[%clk 0:02:57]}  Nf6 {[%clk 0:02:59]} 5. axb4 {[%clk 0:02:56]}  Nxd5 {[%clk 0:02:59]} 6. b5 {[%clk 0:02:56]}  g6 {[%clk 0:02:59]} 7. Nf3 {[%clk 0:02:56]}  Bg7 {[%clk 0:02:59]} 8. d4 {[%clk 0:02:56]}  O-O {[%clk 0:02:59]} 9. Be2 {[%clk 0:02:54]}  Nd7 {[%clk 0:02:58]} 10. O-O {[%clk 0:02:53]}  e5 {[%clk 0:02:50]} 11. c4 {[%clk 0:02:52]}  exd4 {[%clk 0:02:44]} 12. Nxd4 {[%clk 0:02:41]}  Ne7 {[%clk 0:02:41]} 13. Ra3 {[%clk 0:02:24]}  Nc5 {[%clk 0:02:36]} 14. Be3 {[%clk 0:02:23]}  Qc7 {[%clk 0:02:30]} 15. b6 {[%clk 0:02:20]}  Qxb6 {[%clk 0:02:30]} 16. Nb3 {[%clk 0:02:19]} 1-0


[Site "https://www.chess.com"]

[Event "Titled Tuesday Blitz March 07 Early 2023"]
[White "Santos Flores, Alberto"]
[Black "Fernandez Guillen, Ernesto J."]
[WhiteFideId "3601234"]
[BlackFideId "3512428"]
[WhiteElo "2235"]
[BlackElo "2423"]
[Result "1/2-1/2"]
[Round "04"]
[TimeControl "180+2"]
[Date "2023.03.07"]
[WhiteClock "0:00:11"]
[BlackClock "0:00:17"]

1. e4 {[%clk 0:03:00]}  e5 {[%clk 0:02:55]} 2. Nf3 {[%clk 0:03:00]}  Nc6 {[%clk 0:02:55]} 3. Bc4 {[%clk 0:03:00]}  g6 {[%clk 0:02:54]} 4. d3 {[%clk 0:02:57]}  Bg7 {[%clk 0:02:53]} 5. Ng5 {[%clk 0:02:44]}  Nh6 {[%clk 0:02:52]} 6. O-O {[%clk 0:02:43]}  Na5 {[%clk 0:02:52]} 7. Bb3 {[%clk 0:02:39]}  Nxb3 {[%clk 0:02:51]} 8. axb3 {[%clk 0:02:40]}  O-O {[%clk 0:02:51]} 9. Nc3 {[%clk 0:02:38]}  d6 {[%clk 0:02:48]} 10. f4 {[%clk 0:02:38]}  f5 {[%clk 0:02:40]} 11. fxe5 {[%clk 0:02:29]}  dxe5 {[%clk 0:02:32]} 12. exf5 {[%clk 0:02:23]}  gxf5 {[%clk 0:02:33]} 13. Qh5 {[%clk 0:02:21]}  c6 {[%clk 0:02:28]} 14. Rf3 {[%clk 0:02:09]}  Qe8 {[%clk 0:02:17]} 15. Qxe8 {[%clk 0:02:00]}  Rxe8 {[%clk 0:02:18]} 16. Bd2 {[%clk 0:01:56]}  Nf7 {[%clk 0:02:03]} 17. Nxf7 {[%clk 0:01:52]}  Kxf7 {[%clk 0:02:04]} 18. g4 {[%clk 0:01:52]}  f4 {[%clk 0:02:03]} 19. h3 {[%clk 0:01:52]}  h5 {[%clk 0:02:03]} 20. gxh5 {[%clk 0:01:49]}  Bf6 {[%clk 0:02:03]} 21. Ne4 {[%clk 0:01:47]}  Rg8+ {[%clk 0:02:03]} 22. Kh2 {[%clk 0:01:45]}  Be7 {[%clk 0:01:58]} 23. Bc3 {[%clk 0:01:39]}  Ke6 {[%clk 0:01:31]} 24. Re1 {[%clk 0:01:38]}  Bh4 {[%clk 0:01:31]} 25. Nf2 {[%clk 0:01:38]}  Bg3+ {[%clk 0:01:19]} 26. Kh1 {[%clk 0:01:35]}  Rg5 {[%clk 0:01:19]} 27. Ne4 {[%clk 0:01:29]}  Bxe1 {[%clk 0:01:04]} 28. Nxg5+ {[%clk 0:01:29]}  Kf5 {[%clk 0:01:05]} 29. Bxe1 {[%clk 0:00:33]}  Kxg5 {[%clk 0:01:05]} 30. Bc3 {[%clk 0:00:34]}  Be6 {[%clk 0:01:03]} 31. Kh2 {[%clk 0:00:30]}  Bd5 {[%clk 0:00:59]} 32. Rf1 {[%clk 0:00:27]}  Re8 {[%clk 0:00:55]} 33. Re1 {[%clk 0:00:24]}  e4 {[%clk 0:00:51]} 34. dxe4 {[%clk 0:00:24]}  Rxe4 {[%clk 0:00:36]} 35. Rxe4 {[%clk 0:00:15]}  Bxe4 {[%clk 0:00:37]} 36. Bd2 {[%clk 0:00:14]}  Bxc2 {[%clk 0:00:32]} 37. h6 {[%clk 0:00:13]}  Be4 {[%clk 0:00:29]} 38. b4 {[%clk 0:00:12]}  b6 {[%clk 0:00:27]} 39. Kg1 {[%clk 0:00:11]}  c5 {[%clk 0:00:23]} 40. bxc5 {[%clk 0:00:11]}  bxc5 {[%clk 0:00:23]} 41. Kf2 {[%clk 0:00:12]}  c4 {[%clk 0:00:24]} 42. h4+ {[%clk 0:00:08]}  Kg4 {[%clk 0:00:23]} 43. Bc1 {[%clk 0:00:07]}  a5 {[%clk 0:00:23]} 44. Bd2 {[%clk 0:00:07]}  a4 {[%clk 0:00:23]} 45. Bc1 {[%clk 0:00:08]}  Bg6 {[%clk 0:00:21]} 46. Bd2 {[%clk 0:00:08]}  Kf5 {[%clk 0:00:21]} 47. h5 {[%clk 0:00:07]}  Bh7 {[%clk 0:00:20]} 48. Kf3 {[%clk 0:00:08]}  Bg8 {[%clk 0:00:18]} 49. Bxf4 {[%clk 0:00:08]}  Bh7 {[%clk 0:00:07]} 50. Bd2 {[%clk 0:00:07]}  Ke5 {[%clk 0:00:06]} 51. Bc3+ {[%clk 0:00:07]}  Ke6 {[%clk 0:00:05]} 52. Kf4 {[%clk 0:00:07]}  Bb1 {[%clk 0:00:04]} 53. Ke3 {[%clk 0:00:05]}  Kd5 {[%clk 0:00:04]} 54. Kf4 {[%clk 0:00:05]}  Ke6 {[%clk 0:00:04]} 55. Kg5 {[%clk 0:00:06]}  Bh7 {[%clk 0:00:03]} 56. Bg7 {[%clk 0:00:04]}  Bd3 {[%clk 0:00:02]} 57. h7 {[%clk 0:00:03]}  Bxh7 {[%clk 0:00:03]} 58. Kh6 {[%clk 0:00:03]}  Bd3 {[%clk 0:00:03]} 59. Bc3 {[%clk 0:00:03]}  Kf7 {[%clk 0:00:04]} 60. Kg5 {[%clk 0:00:03]}  Bb1 {[%clk 0:00:03]} 61. Kf4 {[%clk 0:00:01]}  Bd3 {[%clk 0:00:04]} 62. Ke5 {[%clk 0:00:02]}  Kg8 {[%clk 0:00:04]} 63. h6 {[%clk 0:00:02]}  Kh7 {[%clk 0:00:05]} 64. Kd4 {[%clk 0:00:02]}  Kxh6 {[%clk 0:00:05]} 65. Kc5 {[%clk 0:00:03]}  a3 {[%clk 0:00:06]} 66. Kb4 {[%clk 0:00:04]}  a2 {[%clk 0:00:07]} 67. b3 {[%clk 0:00:04]}  cxb3 {[%clk 0:00:07]} 68. Kxb3 {[%clk 0:00:04]}  Bb1 {[%clk 0:00:08]} 69. Kb2 {[%clk 0:00:04]}  Kg5 {[%clk 0:00:08]} 70. Ka1 {[%clk 0:00:05]}  Kf4 {[%clk 0:00:08]} 71. Bb2 {[%clk 0:00:06]}  Ke4 {[%clk 0:00:09]} 72. Bh8 {[%clk 0:00:07]}  Kd3 {[%clk 0:00:10]} 73. Bb2 {[%clk 0:00:07]}  Kc2 {[%clk 0:00:11]} 74. Bh8 {[%clk 0:00:08]}  Kb3 {[%clk 0:00:12]} 75. Bb2 {[%clk 0:00:09]}  Bd3 {[%clk 0:00:13]} 76. Bh8 {[%clk 0:00:09]}  Bc4 {[%clk 0:00:14]} 77. Bb2 {[%clk 0:00:10]}  Bd3 {[%clk 0:00:15]} 78. Bh8 {[%clk 0:00:10]}  Bc4 {[%clk 0:00:16]} 79. Bb2 {[%clk 0:00:11]}  Bd3 {[%clk 0:00:17]} 1/2-1/2


[Site "https://www.chess.com"]

[Event "Titled Tuesday Blitz March 07 Early 2023"]
[White "Osmak, Yuliia"]
[Black "Bolourchifard, Farzad"]
[WhiteFideId "14101602"]
[BlackFideId "12510084"]
[WhiteElo "2271"]
[BlackElo "2317"]
[Result "0-1"]
[Round "04"]
[TimeControl "180+2"]
[Date "2023.03.07"]
[WhiteClock "0:00:12"]
[BlackClock "0:00:24"]

1. d4 {[%clk 0:02:52]}  Nf6 {[%clk 0:03:00]} 2. Bf4 {[%clk 0:02:51]}  e6 {[%clk 0:02:59]} 3. e3 {[%clk 0:02:50]}  c5 {[%clk 0:03:00]} 4. c3 {[%clk 0:02:50]}  b6 {[%clk 0:03:01]} 5. Bd3 {[%clk 0:02:47]}  Be7 {[%clk 0:03:01]} 6. Nf3 {[%clk 0:02:46]}  O-O {[%clk 0:03:02]} 7. h3 {[%clk 0:02:45]}  Ba6 {[%clk 0:03:02]} 8. O-O {[%clk 0:02:43]}  Bxd3 {[%clk 0:03:01]} 9. Qxd3 {[%clk 0:02:44]}  d5 {[%clk 0:03:00]} 10. Nbd2 {[%clk 0:02:41]}  Nc6 {[%clk 0:03:01]} 11. Ne5 {[%clk 0:02:40]}  Nxe5 {[%clk 0:02:59]} 12. Bxe5 {[%clk 0:02:40]}  Nd7 {[%clk 0:02:55]} 13. Bg3 {[%clk 0:02:39]}  Bf6 {[%clk 0:02:52]} 14. a4 {[%clk 0:02:36]}  Re8 {[%clk 0:02:51]} 15. Nf3 {[%clk 0:02:24]}  Qc8 {[%clk 0:02:26]} 16. a5 {[%clk 0:02:18]}  c4 {[%clk 0:02:25]} 17. Qc2 {[%clk 0:02:06]}  bxa5 {[%clk 0:02:06]} 18. Rxa5 {[%clk 0:02:04]}  Bd8 {[%clk 0:02:06]} 19. Ra2 {[%clk 0:02:01]}  Bc7 {[%clk 0:02:05]} 20. Bxc7 {[%clk 0:01:59]}  Qxc7 {[%clk 0:02:05]} 21. Rfa1 {[%clk 0:01:59]}  Reb8 {[%clk 0:02:04]} 22. e4 {[%clk 0:01:52]}  Nf6 {[%clk 0:01:57]} 23. exd5 {[%clk 0:01:42]}  exd5 {[%clk 0:01:56]} 24. Ne5 {[%clk 0:01:41]}  Rb7 {[%clk 0:01:54]} 25. Ra6 {[%clk 0:01:35]}  Rb6 {[%clk 0:01:42]} 26. R1a2 {[%clk 0:01:11]}  Qb7 {[%clk 0:01:25]} 27. R6a5 {[%clk 0:01:09]}  h6 {[%clk 0:01:18]} 28. f3 {[%clk 0:00:55]}  a6 {[%clk 0:01:17]} 29. Ng4 {[%clk 0:00:34]}  Nh5 {[%clk 0:01:05]} 30. Qf5 {[%clk 0:00:27]}  g6 {[%clk 0:01:00]} 31. Qxd5 {[%clk 0:00:26]}  Qxd5 {[%clk 0:00:34]} 32. Rxd5 {[%clk 0:00:27]}  Rab8 {[%clk 0:00:35]} 33. Nxh6+ {[%clk 0:00:17]}  Kg7 {[%clk 0:00:35]} 34. Ng4 {[%clk 0:00:17]}  Rxb2 {[%clk 0:00:35]} 35. Rxb2 {[%clk 0:00:15]}  Rxb2 {[%clk 0:00:36]} 36. Ne3 {[%clk 0:00:15]}  Nf4 {[%clk 0:00:30]} 37. Re5 {[%clk 0:00:13]}  f6 {[%clk 0:00:22]} 38. Re7+ {[%clk 0:00:13]}  Kf8 {[%clk 0:00:23]} 39. Re4 {[%clk 0:00:13]}  Ne2+ {[%clk 0:00:23]} 40. Kh2 {[%clk 0:00:12]}  Nxc3 {[%clk 0:00:24]} 41. Re6 {[%clk 0:00:12]}  Kf7 {[%clk 0:00:24]} 0-1


[Site "https://www.chess.com"]

[Event "Titled Tuesday Blitz March 07 Early 2023"]
[White "Wagner, Dennis"]
[Black "Baches Garcia, Guillermo"]
[WhiteFideId "24650684"]
[BlackFideId "2209764"]
[WhiteElo "2470"]
[BlackElo "2515"]
[Result "1-0"]
[Round "04"]
[TimeControl "180+2"]
[Date "2023.03.07"]
[WhiteClock "0:00:50"]
[BlackClock "0:00:01"]

1. Nf3 {[%clk 0:03:00]}  d5 {[%clk 0:02:59]} 2. e3 {[%clk 0:03:00]}  Nf6 {[%clk 0:02:59]} 3. c4 {[%clk 0:03:00]}  e6 {[%clk 0:02:57]} 4. Nc3 {[%clk 0:03:00]}  c5 {[%clk 0:02:57]} 5. cxd5 {[%clk 0:02:58]}  Nxd5 {[%clk 0:02:56]} 6. b3 {[%clk 0:02:52]}  Nxc3 {[%clk 0:02:49]} 7. dxc3 {[%clk 0:02:53]}  Qxd1+ {[%clk 0:02:49]} 8. Kxd1 {[%clk 0:02:54]}  Nc6 {[%clk 0:02:48]} 9. Kc2 {[%clk 0:02:48]}  Be7 {[%clk 0:02:40]} 10. e4 {[%clk 0:02:40]}  e5 {[%clk 0:02:30]} 11. Bb5 {[%clk 0:02:37]}  f6 {[%clk 0:02:28]} 12. Bxc6+ {[%clk 0:02:32]}  bxc6 {[%clk 0:02:28]} 13. Be3 {[%clk 0:02:30]}  c4 {[%clk 0:02:08]} 14. bxc4 {[%clk 0:02:20]}  Be6 {[%clk 0:02:08]} 15. Nd2 {[%clk 0:02:17]}  Kf7 {[%clk 0:02:08]} 16. Rab1 {[%clk 0:02:11]}  Rhb8 {[%clk 0:02:04]} 17. a4 {[%clk 0:02:08]}  f5 {[%clk 0:01:47]} 18. f3 {[%clk 0:02:06]}  g5 {[%clk 0:01:44]} 19. a5 {[%clk 0:01:47]}  f4 {[%clk 0:01:21]} 20. Rxb8 {[%clk 0:01:42]}  Rxb8 {[%clk 0:01:18]} 21. Bxa7 {[%clk 0:01:43]}  Ra8 {[%clk 0:01:06]} 22. Bb6 {[%clk 0:01:43]}  Ke8 {[%clk 0:01:06]} 23. Ra1 {[%clk 0:01:35]}  Bc8 {[%clk 0:01:04]} 24. c5 {[%clk 0:01:24]}  Ba6 {[%clk 0:01:00]} 25. Kb3 {[%clk 0:01:25]}  Kd7 {[%clk 0:00:56]} 26. Nc4 {[%clk 0:01:24]}  Ke6 {[%clk 0:00:55]} 27. Rd1 {[%clk 0:01:19]}  h5 {[%clk 0:00:47]} 28. h3 {[%clk 0:01:16]}  g4 {[%clk 0:00:46]} 29. hxg4 {[%clk 0:01:15]}  hxg4 {[%clk 0:00:47]} 30. Nd6 {[%clk 0:01:14]}  gxf3 {[%clk 0:00:25]} 31. gxf3 {[%clk 0:01:15]}  Rg8 {[%clk 0:00:25]} 32. Rh1 {[%clk 0:01:14]}  Rg3 {[%clk 0:00:23]} 33. Rh6+ {[%clk 0:01:13]}  Kd7 {[%clk 0:00:23]} 34. Nf5 {[%clk 0:01:08]}  Bg5 {[%clk 0:00:18]} 35. Rd6+ {[%clk 0:01:04]}  Ke8 {[%clk 0:00:16]} 36. Rxc6 {[%clk 0:00:50]}  Rxf3 {[%clk 0:00:17]} 37. Rg6 {[%clk 0:00:51]}  Bd3 {[%clk 0:00:01]} 38. Rxg5 {[%clk 0:00:49]}  Bxe4 {[%clk 0:00:01]} 39. Nd6+ {[%clk 0:00:50]} 1-0


[Site "https://www.chess.com"]

[Event "Titled Tuesday Blitz March 07 Early 2023"]
[White "Estrada Nieto, Julian"]
[Black "Klabis, Rokas"]
[WhiteFideId "5101018"]
[BlackFideId "12805246"]
[WhiteElo "2176"]
[BlackElo "2288"]
[Result "0-1"]
[Round "04"]
[TimeControl "180+2"]
[Date "2023.03.07"]
[WhiteClock "0:00:01"]
[BlackClock "0:00:42"]

1. e4 {[%clk 0:03:00]}  e5 {[%clk 0:02:57]} 2. Nf3 {[%clk 0:03:00]}  Nc6 {[%clk 0:02:57]} 3. Bb5 {[%clk 0:02:59]}  Nge7 {[%clk 0:02:57]} 4. Nc3 {[%clk 0:02:58]}  a6 {[%clk 0:02:56]} 5. Ba4 {[%clk 0:02:57]}  g6 {[%clk 0:02:57]} 6. d4 {[%clk 0:02:57]}  exd4 {[%clk 0:02:57]} 7. Nd5 {[%clk 0:02:57]}  Bg7 {[%clk 0:02:57]} 8. Bg5 {[%clk 0:02:57]}  h6 {[%clk 0:02:58]} 9. Bf6 {[%clk 0:02:57]}  Bxf6 {[%clk 0:02:58]} 10. Nxf6+ {[%clk 0:02:57]}  Kf8 {[%clk 0:02:59]} 11. Nxd4 {[%clk 0:02:48]}  Kg7 {[%clk 0:02:59]} 12. Qd2 {[%clk 0:02:32]}  Ng8 {[%clk 0:02:57]} 13. Nd5 {[%clk 0:02:23]}  Nce7 {[%clk 0:02:57]} 14. Qc3 {[%clk 0:02:05]}  Kh7 {[%clk 0:02:52]} 15. Qxc7 {[%clk 0:01:46]}  Qe8 {[%clk 0:02:40]} 16. O-O-O {[%clk 0:01:31]}  Nxd5 {[%clk 0:02:31]} 17. exd5 {[%clk 0:01:31]}  b5 {[%clk 0:02:30]} 18. Rhe1 {[%clk 0:01:17]}  Qf8 {[%clk 0:02:30]} 19. Bb3 {[%clk 0:01:17]}  Nf6 {[%clk 0:02:30]} 20. Qe5 {[%clk 0:00:50]}  Qg7 {[%clk 0:02:30]} 21. d6 {[%clk 0:00:49]}  Bb7 {[%clk 0:02:23]} 22. f3 {[%clk 0:00:44]}  Rac8 {[%clk 0:02:16]} 23. g4 {[%clk 0:00:38]}  Rhe8 {[%clk 0:02:15]} 24. Qg3 {[%clk 0:00:36]}  Rxe1 {[%clk 0:02:12]} 25. Qxe1 {[%clk 0:00:33]}  Nd5 {[%clk 0:01:59]} 26. Bxd5 {[%clk 0:00:30]}  Bxd5 {[%clk 0:01:59]} 27. Kb1 {[%clk 0:00:28]}  Be6 {[%clk 0:01:22]} 28. Nxe6 {[%clk 0:00:21]}  fxe6 {[%clk 0:01:23]} 29. Qe4 {[%clk 0:00:18]}  Rc5 {[%clk 0:01:16]} 30. a3 {[%clk 0:00:17]}  a5 {[%clk 0:01:13]} 31. f4 {[%clk 0:00:14]}  Qf7 {[%clk 0:01:11]} 32. Qd4 {[%clk 0:00:13]}  Rc4 {[%clk 0:01:10]} 33. Qa7 {[%clk 0:00:11]}  b4 {[%clk 0:01:09]} 34. Qxa5 {[%clk 0:00:10]}  bxa3 {[%clk 0:01:08]} 35. Qxa3 {[%clk 0:00:10]}  Rxf4 {[%clk 0:01:04]} 36. h3 {[%clk 0:00:10]}  Qe8 {[%clk 0:01:02]} 37. Qe3 {[%clk 0:00:09]}  g5 {[%clk 0:01:00]} 38. Qd3+ {[%clk 0:00:08]}  Kg7 {[%clk 0:01:00]} 39. Rf1 {[%clk 0:00:08]}  Qf7 {[%clk 0:00:53]} 40. Rxf4 {[%clk 0:00:07]}  Qxf4 {[%clk 0:00:54]} 41. Qc3+ {[%clk 0:00:07]}  e5 {[%clk 0:00:53]} 42. Qc7 {[%clk 0:00:08]}  Qf1+ {[%clk 0:00:53]} 43. Ka2 {[%clk 0:00:07]}  Qa6+ {[%clk 0:00:53]} 44. Kb1 {[%clk 0:00:07]}  Qf1+ {[%clk 0:00:51]} 45. Ka2 {[%clk 0:00:07]}  Qf7+ {[%clk 0:00:51]} 46. b3 {[%clk 0:00:03]}  e4 {[%clk 0:00:51]} 47. Qc5 {[%clk 0:00:03]}  Qe6 {[%clk 0:00:50]} 48. Qd4+ {[%clk 0:00:02]}  Kg6 {[%clk 0:00:45]} 49. Qe3 {[%clk 0:00:02]}  Kf6 {[%clk 0:00:43]} 50. c4 {[%clk 0:00:02]}  Ke5 {[%clk 0:00:43]} 51. Kb2 {[%clk 0:00:02]}  Qxd6 {[%clk 0:00:43]} 52. Qc3+ {[%clk 0:00:01]}  Qd4 {[%clk 0:00:42]} 0-1


[Site "https://www.chess.com"]

[Event "Titled Tuesday Blitz March 07 Early 2023"]
[White "Berthier, Hugo"]
[Black "Goltsev, Dmitry"]
[WhiteFideId "655864"]
[BlackFideId "24176710"]
[WhiteElo "2193"]
[BlackElo "2336"]
[Result "0-1"]
[Round "04"]
[TimeControl "180+2"]
[Date "2023.03.07"]
[WhiteClock "0:00:08"]
[BlackClock "0:01:13"]

1. d4 {[%clk 0:03:00]}  Nf6 {[%clk 0:03:00]} 2. Bf4 {[%clk 0:03:00]}  e6 {[%clk 0:03:00]} 3. e3 {[%clk 0:03:00]}  d5 {[%clk 0:03:01]} 4. c3 {[%clk 0:03:00]}  Bd6 {[%clk 0:03:02]} 5. Bg3 {[%clk 0:03:00]}  O-O {[%clk 0:03:02]} 6. Nd2 {[%clk 0:03:00]}  Ne4 {[%clk 0:03:02]} 7. Nxe4 {[%clk 0:02:57]}  dxe4 {[%clk 0:03:03]} 8. Ne2 {[%clk 0:02:41]}  f5 {[%clk 0:03:03]} 9. Qb3 {[%clk 0:02:35]}  Kh8 {[%clk 0:03:01]} 10. Nf4 {[%clk 0:02:30]}  Qe7 {[%clk 0:03:00]} 11. Bc4 {[%clk 0:02:29]}  Re8 {[%clk 0:02:56]} 12. O-O-O {[%clk 0:02:20]}  Nc6 {[%clk 0:02:52]} 13. Qc2 {[%clk 0:02:17]}  Bd7 {[%clk 0:02:48]} 14. f3 {[%clk 0:02:17]}  exf3 {[%clk 0:02:44]} 15. gxf3 {[%clk 0:02:18]}  e5 {[%clk 0:02:41]} 16. Nd5 {[%clk 0:02:04]}  Qd8 {[%clk 0:02:34]} 17. Rhg1 {[%clk 0:02:01]}  e4 {[%clk 0:02:21]} 18. fxe4 {[%clk 0:01:52]}  fxe4 {[%clk 0:02:19]} 19. Bxd6 {[%clk 0:01:41]}  cxd6 {[%clk 0:02:20]} 20. Qg2 {[%clk 0:01:41]}  g6 {[%clk 0:02:14]} 21. Rdf1 {[%clk 0:01:37]}  Rf8 {[%clk 0:02:04]} 22. Qxe4 {[%clk 0:01:25]}  Bf5 {[%clk 0:02:03]} 23. Qg2 {[%clk 0:01:19]}  Rc8 {[%clk 0:01:58]} 24. Bb3 {[%clk 0:01:14]}  Qh4 {[%clk 0:01:51]} 25. Nf4 {[%clk 0:01:06]}  Rfe8 {[%clk 0:01:45]} 26. Qg3 {[%clk 0:01:06]}  Qe7 {[%clk 0:01:42]} 27. Bc2 {[%clk 0:01:05]}  Bxc2 {[%clk 0:01:40]} 28. Kxc2 {[%clk 0:01:05]}  Qe4+ {[%clk 0:01:36]} 29. Kc1 {[%clk 0:00:55]}  Nb4 {[%clk 0:01:34]} 30. Rg2 {[%clk 0:00:39]}  Nxa2+ {[%clk 0:01:27]} 31. Kd2 {[%clk 0:00:39]}  Nb4 {[%clk 0:01:27]} 32. Kc1 {[%clk 0:00:28]}  b5 {[%clk 0:01:17]} 33. Qg5 {[%clk 0:00:20]}  Qxe3+ {[%clk 0:01:15]} 34. Kb1 {[%clk 0:00:20]}  Qe1+ {[%clk 0:01:12]} 35. Rxe1 {[%clk 0:00:08]}  Rxe1# {[%clk 0:01:13]} 0-1


[Site "https://www.chess.com"]

[Event "Titled Tuesday Blitz March 07 Early 2023"]
[White "Aldokhin, Ivan"]
[Black "Ronka, Erik"]
[WhiteFideId "24115720"]
[BlackFideId "505080"]
[WhiteElo "2322"]
[BlackElo "2264"]
[Result "1-0"]
[Round "04"]
[TimeControl "180+2"]
[Date "2023.03.07"]
[WhiteClock "0:00:07"]
[BlackClock "0:00:01"]

1. e4 {[%clk 0:02:46]}  c5 {[%clk 0:02:59]} 2. Nf3 {[%clk 0:02:46]}  d6 {[%clk 0:02:57]} 3. d4 {[%clk 0:02:46]}  cxd4 {[%clk 0:02:57]} 4. Nxd4 {[%clk 0:02:47]}  Nf6 {[%clk 0:02:58]} 5. Nc3 {[%clk 0:02:47]}  e6 {[%clk 0:02:57]} 6. g4 {[%clk 0:02:46]}  h6 {[%clk 0:02:57]} 7. Be3 {[%clk 0:02:41]}  Nc6 {[%clk 0:02:44]} 8. Nb3 {[%clk 0:02:26]}  d5 {[%clk 0:02:29]} 9. exd5 {[%clk 0:02:12]}  exd5 {[%clk 0:02:30]} 10. h3 {[%clk 0:02:09]}  Bb4 {[%clk 0:02:03]} 11. Bg2 {[%clk 0:02:05]}  O-O {[%clk 0:02:01]} 12. O-O {[%clk 0:02:04]}  Be6 {[%clk 0:01:56]} 13. Nd4 {[%clk 0:01:57]}  Bxc3 {[%clk 0:01:52]} 14. bxc3 {[%clk 0:01:54]}  Rc8 {[%clk 0:01:37]} 15. c4 {[%clk 0:01:21]}  Nxd4 {[%clk 0:01:32]} 16. Qxd4 {[%clk 0:01:20]}  Rxc4 {[%clk 0:01:28]} 17. Qxa7 {[%clk 0:01:20]}  Rxc2 {[%clk 0:00:54]} 18. Qxb7 {[%clk 0:01:18]}  d4 {[%clk 0:00:53]} 19. Rfd1 {[%clk 0:01:10]}  Rxa2 {[%clk 0:00:18]} 20. Rxa2 {[%clk 0:01:07]}  Bxa2 {[%clk 0:00:19]} 21. Rxd4 {[%clk 0:00:59]}  Qc8 {[%clk 0:00:17]} 22. Qb2 {[%clk 0:00:52]}  Be6 {[%clk 0:00:17]} 23. Rd1 {[%clk 0:00:41]}  Qc4 {[%clk 0:00:16]} 24. Bxh6 {[%clk 0:00:37]}  Re8 {[%clk 0:00:09]} 25. Rd4 {[%clk 0:00:24]}  Qc7 {[%clk 0:00:07]} 26. Bf4 {[%clk 0:00:21]}  Qe7 {[%clk 0:00:07]} 27. Bd6 {[%clk 0:00:20]}  Qa7 {[%clk 0:00:07]} 28. Be5 {[%clk 0:00:19]}  Nd7 {[%clk 0:00:06]} 29. Bxg7 {[%clk 0:00:16]}  Rb8 {[%clk 0:00:04]} 30. Qc3 {[%clk 0:00:15]}  Rb3 {[%clk 0:00:04]} 31. Qd2 {[%clk 0:00:10]}  Kxg7 {[%clk 0:00:04]} 32. Qg5+ {[%clk 0:00:10]}  Kf8 {[%clk 0:00:04]} 33. Rf4 {[%clk 0:00:05]}  Qc5 {[%clk 0:00:03]} 34. Qh6+ {[%clk 0:00:04]}  Ke7 {[%clk 0:00:03]} 35. Qh8 {[%clk 0:00:02]}  Rb1+ {[%clk 0:00:03]} 36. Kh2 {[%clk 0:00:03]}  Qe5 {[%clk 0:00:04]} 37. Qxe5 {[%clk 0:00:02]}  Nxe5 {[%clk 0:00:05]} 38. Re4 {[%clk 0:00:02]}  f6 {[%clk 0:00:04]} 39. Kg3 {[%clk 0:00:03]}  Bd5 {[%clk 0:00:04]} 40. Rxe5+ {[%clk 0:00:02]}  fxe5 {[%clk 0:00:05]} 41. Bxd5 {[%clk 0:00:02]}  Rd1 {[%clk 0:00:04]} 42. Be4 {[%clk 0:00:02]}  Kf6 {[%clk 0:00:04]} 43. h4 {[%clk 0:00:02]}  Rd4 {[%clk 0:00:04]} 44. f3 {[%clk 0:00:03]}  Ra4 {[%clk 0:00:04]} 45. g5+ {[%clk 0:00:04]}  Ke6 {[%clk 0:00:03]} 46. Kg4 {[%clk 0:00:05]}  Ra1 {[%clk 0:00:03]} 47. g6 {[%clk 0:00:05]}  Kf6 {[%clk 0:00:02]} 48. Kh5 {[%clk 0:00:04]}  Rg1 {[%clk 0:00:02]} 49. Kh6 {[%clk 0:00:04]}  Rg2 {[%clk 0:00:02]} 50. h5 {[%clk 0:00:03]}  Rg3 {[%clk 0:00:02]} 51. Kh7 {[%clk 0:00:04]}  Rh3 {[%clk 0:00:01]} 52. h6 {[%clk 0:00:04]}  Rg3 {[%clk 0:00:01]} 53. g7 {[%clk 0:00:04]}  Kf7 {[%clk 0:00:02]} 54. Bd5+ {[%clk 0:00:05]}  Kf6 {[%clk 0:00:02]} 55. g8=Q {[%clk 0:00:04]}  Rxg8 {[%clk 0:00:02]} 56. Kxg8 {[%clk 0:00:05]}  e4 {[%clk 0:00:01]} 57. Bxe4 {[%clk 0:00:05]}  Ke5 {[%clk 0:00:01]} 58. h7 {[%clk 0:00:06]}  Kf4 {[%clk 0:00:02]} 59. h8=Q {[%clk 0:00:06]}  Ke3 {[%clk 0:00:02]} 60. Qe5 {[%clk 0:00:06]}  Kf2 {[%clk 0:00:01]} 61. f4 {[%clk 0:00:07]}  Kg1 {[%clk 0:00:01]} 62. f5 {[%clk 0:00:07]} 1-0


[Site "https://www.chess.com"]

[Event "Titled Tuesday Blitz March 07 Early 2023"]
[White "Mortazavi, Ali"]
[Black "De Silva, L M S T"]
[WhiteFideId "401323"]
[BlackFideId "9953698"]
[WhiteElo "2339"]
[BlackElo "2403"]
[Result "0-1"]
[Round "04"]
[TimeControl "180+2"]
[Date "2023.03.07"]
[WhiteClock "0:00:05"]
[BlackClock "0:00:09"]

1. Nf3 {[%clk 0:03:00]}  Nf6 {[%clk 0:02:58]} 2. g3 {[%clk 0:02:58]}  b5 {[%clk 0:02:57]} 3. Bg2 {[%clk 0:02:59]}  Bb7 {[%clk 0:02:57]} 4. O-O {[%clk 0:03:00]}  e6 {[%clk 0:02:57]} 5. d3 {[%clk 0:02:58]}  d5 {[%clk 0:02:58]} 6. a4 {[%clk 0:02:55]}  b4 {[%clk 0:02:58]} 7. Nbd2 {[%clk 0:02:55]}  Be7 {[%clk 0:02:58]} 8. e4 {[%clk 0:02:53]}  dxe4 {[%clk 0:02:56]} 9. Ng5 {[%clk 0:02:53]}  O-O {[%clk 0:02:55]} 10. Ngxe4 {[%clk 0:02:53]}  Nxe4 {[%clk 0:02:51]} 11. Nxe4 {[%clk 0:02:43]}  Qc8 {[%clk 0:02:51]} 12. a5 {[%clk 0:02:38]}  Na6 {[%clk 0:02:49]} 13. Qh5 {[%clk 0:02:26]}  Rd8 {[%clk 0:02:20]} 14. Bf4 {[%clk 0:02:20]}  h6 {[%clk 0:01:52]} 15. Rfe1 {[%clk 0:02:05]}  Rd5 {[%clk 0:01:47]} 16. Qe2 {[%clk 0:02:05]}  Rd7 {[%clk 0:01:39]} 17. Qh5 {[%clk 0:01:56]}  Rd5 {[%clk 0:01:25]} 18. Qe2 {[%clk 0:01:55]}  c5 {[%clk 0:01:23]} 19. b3 {[%clk 0:01:53]}  Nc7 {[%clk 0:01:18]} 20. Nd2 {[%clk 0:01:40]}  Nb5 {[%clk 0:01:18]} 21. Bxd5 {[%clk 0:01:34]}  Bxd5 {[%clk 0:01:19]} 22. Qg4 {[%clk 0:01:30]}  Kh7 {[%clk 0:00:49]} 23. Be3 {[%clk 0:01:09]}  Bf6 {[%clk 0:00:45]} 24. Rac1 {[%clk 0:01:05]}  Nc3 {[%clk 0:00:40]} 25. Ne4 {[%clk 0:01:02]}  Qd8 {[%clk 0:00:19]} 26. Bxc5 {[%clk 0:00:55]}  Rc8 {[%clk 0:00:16]} 27. Bxa7 {[%clk 0:00:46]}  Na2 {[%clk 0:00:16]} 28. Bb6 {[%clk 0:00:46]}  Qe7 {[%clk 0:00:16]} 29. Nxf6+ {[%clk 0:00:38]}  gxf6 {[%clk 0:00:17]} 30. Ra1 {[%clk 0:00:29]}  Rxc2 {[%clk 0:00:17]} 31. Qd1 {[%clk 0:00:20]}  Bxb3 {[%clk 0:00:17]} 32. Qg4 {[%clk 0:00:15]}  f5 {[%clk 0:00:17]} 33. Qd4 {[%clk 0:00:14]}  Nc3 {[%clk 0:00:14]} 34. a6 {[%clk 0:00:12]}  Bd5 {[%clk 0:00:12]} 35. a7 {[%clk 0:00:11]}  Ba8 {[%clk 0:00:13]} 36. Bc5 {[%clk 0:00:08]}  Qb7 {[%clk 0:00:12]} 37. Re4 {[%clk 0:00:06]}  fxe4 {[%clk 0:00:12]} 38. Bf8 {[%clk 0:00:06]}  Ne2+ {[%clk 0:00:09]} 39. Kf1 {[%clk 0:00:05]}  Nxd4 {[%clk 0:00:09]} 0-1


[Site "https://www.chess.com"]